[Event "Titled Tuesday Blitz June 20 Early 2023"]
[White "Nikologorsky, Matfei"]
[Black "Dzhaparov, Medet"]
[WhiteFideId "24102474"]
[BlackFideId "13803689"]
[WhiteElo "2153"]
[BlackElo "1690"]
[Result "1-0"]
[Round "3"]
[TimeControl "180+2"]
[Date "2023.06.20"]
[WhiteClock "0:00:52"]
[BlackClock "0:00:23"]
[Board "217"]

1. e4 {[%clk 0:02:59]}  d5 {[%clk 0:02:51]} 2. exd5 {[%clk 0:02:59]}  Nf6 {[%clk 0:02:47]} 3. Bb5+ {[%clk 0:02:58]}  c6 {[%clk 0:02:46]} 4. dxc6 {[%clk 0:02:59]}  bxc6 {[%clk 0:02:46]} 5. Be2 {[%clk 0:02:58]}  Bb7 {[%clk 0:02:43]} 6. Nf3 {[%clk 0:02:58]}  Nbd7 {[%clk 0:02:37]} 7. d4 {[%clk 0:02:58]}  e6 {[%clk 0:02:33]} 8. O-O {[%clk 0:02:58]}  Bd6 {[%clk 0:02:30]} 9. c4 {[%clk 0:02:51]}  O-O {[%clk 0:02:26]} 10. Nc3 {[%clk 0:02:46]}  c5 {[%clk 0:02:22]} 11. Nb5 {[%clk 0:02:37]}  Qb6 {[%clk 0:02:20]} 12. Nxd6 {[%clk 0:02:35]}  Qxd6 {[%clk 0:02:21]} 13. dxc5 {[%clk 0:02:33]}  Qxd1 {[%clk 0:02:18]} 14. Rxd1 {[%clk 0:02:34]}  Nxc5 {[%clk 0:02:15]} 15. Be3 {[%clk 0:02:32]}  Nce4 {[%clk 0:02:12]} 16. h3 {[%clk 0:02:29]}  Rad8 {[%clk 0:02:11]} 17. Kf1 {[%clk 0:02:21]}  Ba6 {[%clk 0:02:06]} 18. Ne5 {[%clk 0:02:01]}  Rxd1+ {[%clk 0:02:02]} 19. Rxd1 {[%clk 0:02:00]}  Rc8 {[%clk 0:01:57]} 20. Bxa7 {[%clk 0:01:48]}  Ne8 {[%clk 0:01:49]} 21. b3 {[%clk 0:01:28]}  f6 {[%clk 0:01:30]} 22. Nf3 {[%clk 0:01:18]}  Rc7 {[%clk 0:01:29]} 23. Bd4 {[%clk 0:01:17]}  e5 {[%clk 0:01:25]} 24. Bb6 {[%clk 0:01:10]}  Rb7 {[%clk 0:01:19]} 25. Ba5 {[%clk 0:01:10]}  Kf7 {[%clk 0:01:14]} 26. Nd2 {[%clk 0:01:01]}  Nxd2+ {[%clk 0:01:08]} 27. Rxd2 {[%clk 0:01:02]}  Ra7 {[%clk 0:01:03]} 28. Ke1 {[%clk 0:00:59]}  Bb7 {[%clk 0:00:53]} 29. Bb6 {[%clk 0:00:54]}  Ra6 {[%clk 0:00:31]} 30. Rd7+ {[%clk 0:00:53]}  Ke6 {[%clk 0:00:31]} 31. Rxb7 {[%clk 0:00:54]}  Nd6 {[%clk 0:00:23]} 32. Rb8 {[%clk 0:00:52]} 1-0


[Site "https://www.chess.com"]

[Event "Titled Tuesday Blitz June 20 Early 2023"]
[White "zano2023"]
[Black "Lopez Del Alamo, Antonio"]
[BlackFideId "2227339"]
[WhiteElo "2177"]
[BlackElo "2175"]
[Result "0-1"]
[Round "3"]
[TimeControl "180+2"]
[Date "2023.06.20"]
[WhiteClock "0:00:00"]
[BlackClock "0:00:20"]
[Board "218"]

1. d4 {[%clk 0:03:00]}  Nf6 {[%clk 0:02:52]} 2. Nd2 {[%clk 0:03:00]}  g6 {[%clk 0:02:52]} 3. e4 {[%clk 0:03:00]}  Bg7 {[%clk 0:02:44]} 4. Ngf3 {[%clk 0:02:55]}  d6 {[%clk 0:02:44]} 5. Bd3 {[%clk 0:02:55]}  a6 {[%clk 0:02:43]} 6. O-O {[%clk 0:02:55]}  O-O {[%clk 0:02:42]} 7. Re1 {[%clk 0:02:56]}  b5 {[%clk 0:02:41]} 8. Nf1 {[%clk 0:02:56]}  Bb7 {[%clk 0:02:41]} 9. Ng3 {[%clk 0:02:55]}  Nbd7 {[%clk 0:02:40]} 10. h3 {[%clk 0:02:56]}  e5 {[%clk 0:02:40]} 11. c3 {[%clk 0:02:55]}  c6 {[%clk 0:02:28]} 12. Be3 {[%clk 0:02:55]}  Qc7 {[%clk 0:02:28]} 13. Qd2 {[%clk 0:02:55]}  Rfe8 {[%clk 0:02:27]} 14. Bh6 {[%clk 0:02:55]}  Bh8 {[%clk 0:02:27]} 15. Ng5 {[%clk 0:02:51]}  c5 {[%clk 0:02:00]} 16. d5 {[%clk 0:02:50]}  c4 {[%clk 0:01:59]} 17. Bc2 {[%clk 0:02:49]}  Nc5 {[%clk 0:01:59]} 18. f4 {[%clk 0:02:46]}  Qe7 {[%clk 0:01:51]} 19. f5 {[%clk 0:02:35]}  Bg7 {[%clk 0:01:42]} 20. Nf3 {[%clk 0:02:27]}  Bxh6 {[%clk 0:01:32]} 21. Qxh6 {[%clk 0:02:25]}  Qf8 {[%clk 0:01:33]} 22. Qg5 {[%clk 0:02:19]}  Qg7 {[%clk 0:01:32]} 23. fxg6 {[%clk 0:02:03]}  fxg6 {[%clk 0:01:30]} 24. Rf1 {[%clk 0:01:56]}  Rf8 {[%clk 0:01:29]} 25. Nh4 {[%clk 0:01:47]}  Bc8 {[%clk 0:01:17]} 26. Rf3 {[%clk 0:01:44]}  Ra7 {[%clk 0:01:15]} 27. Raf1 {[%clk 0:01:43]}  Raf7 {[%clk 0:01:15]} 28. b4 {[%clk 0:01:36]}  cxb3 {[%clk 0:01:11]} 29. axb3 {[%clk 0:01:36]}  Bd7 {[%clk 0:00:50]} 30. R3f2 {[%clk 0:01:27]}  a5 {[%clk 0:00:49]} 31. b4 {[%clk 0:01:25]}  axb4 {[%clk 0:00:48]} 32. cxb4 {[%clk 0:01:25]}  Na6 {[%clk 0:00:49]} 33. Qd2 {[%clk 0:01:23]}  Ne8 {[%clk 0:00:42]} 34. Rxf7 {[%clk 0:01:21]}  Rxf7 {[%clk 0:00:43]} 35. Rxf7 {[%clk 0:01:21]}  Qxf7 {[%clk 0:00:44]} 36. Ne2 {[%clk 0:01:08]}  Kg7 {[%clk 0:00:43]} 37. Nf3 {[%clk 0:01:06]}  h6 {[%clk 0:00:41]} 38. Bd3 {[%clk 0:01:05]}  Qe7 {[%clk 0:00:40]} 39. Ne1 {[%clk 0:01:00]}  Qd8 {[%clk 0:00:41]} 40. Nc2 {[%clk 0:01:01]}  Qb6+ {[%clk 0:00:40]} 41. Kf1 {[%clk 0:00:56]}  Nf6 {[%clk 0:00:39]} 42. Qc3 {[%clk 0:00:49]}  Nh5 {[%clk 0:00:33]} 43. g4 {[%clk 0:00:48]}  Nf6 {[%clk 0:00:33]} 44. Ng3 {[%clk 0:00:46]}  h5 {[%clk 0:00:32]} 45. gxh5 {[%clk 0:00:40]}  Bxh3+ {[%clk 0:00:32]} 46. Ke1 {[%clk 0:00:34]}  gxh5 {[%clk 0:00:32]} 47. Nf5+ {[%clk 0:00:22]}  Bxf5 {[%clk 0:00:29]} 48. exf5 {[%clk 0:00:22]}  Qg1+ {[%clk 0:00:29]} 49. Bf1 {[%clk 0:00:21]}  h4 {[%clk 0:00:28]} 50. Qc8 {[%clk 0:00:18]}  h3 {[%clk 0:00:27]} 51. Qxa6 {[%clk 0:00:15]}  h2 {[%clk 0:00:26]} 52. Qb7+ {[%clk 0:00:16]}  Kh6 {[%clk 0:00:25]} 53. Qf7 {[%clk 0:00:15]}  Kg5 {[%clk 0:00:23]} 54. Qg6+ {[%clk 0:00:14]}  Kf4 {[%clk 0:00:23]} 55. Qh6+ {[%clk 0:00:12]}  Ke4 {[%clk 0:00:20]} 56. Qh4+ {[%clk 0:00:13]}  Kxd5 {[%clk 0:00:20]} 57. Ne3+ {[%clk 0:00:10]}  Kc6 {[%clk 0:00:20]} 58. Qxf6 {[%clk 0:00:05]}  Qxe3+ {[%clk 0:00:19]} 59. Kd1 {[%clk 0:00:00]}  h1=Q {[%clk 0:00:20]} 0-1


[Site "https://www.chess.com"]

[Event "Titled Tuesday Blitz June 20 Early 2023"]
[White "Petrova, Irina"]
[Black "Cueto, Jonny"]
[WhiteFideId "14124122"]
[BlackFideId "3300145"]
[WhiteElo "2084"]
[BlackElo "2240"]
[Result "0-1"]
[Round "3"]
[TimeControl "180+2"]
[Date "2023.06.20"]
[WhiteClock "0:00:03"]
[BlackClock "0:00:15"]
[Board "220"]

1. e4 {[%clk 0:03:00]}  e6 {[%clk 0:02:48]} 2. d4 {[%clk 0:03:00]}  d5 {[%clk 0:02:49]} 3. Nc3 {[%clk 0:03:00]}  Nf6 {[%clk 0:02:49]} 4. Bg5 {[%clk 0:02:59]}  Be7 {[%clk 0:02:49]} 5. e5 {[%clk 0:02:59]}  Nfd7 {[%clk 0:02:49]} 6. Bxe7 {[%clk 0:02:57]}  Qxe7 {[%clk 0:02:50]} 7. f4 {[%clk 0:02:57]}  a6 {[%clk 0:02:51]} 8. Nf3 {[%clk 0:02:57]}  c5 {[%clk 0:02:49]} 9. Bd3 {[%clk 0:02:56]}  Nc6 {[%clk 0:02:31]} 10. dxc5 {[%clk 0:02:54]}  Nxc5 {[%clk 0:02:30]} 11. Qd2 {[%clk 0:02:54]}  b5 {[%clk 0:02:30]} 12. a3 {[%clk 0:02:53]}  Rb8 {[%clk 0:02:29]} 13. O-O {[%clk 0:02:49]}  Bd7 {[%clk 0:02:26]} 14. Rad1 {[%clk 0:02:46]}  g6 {[%clk 0:02:26]} 15. Kh1 {[%clk 0:02:45]}  O-O {[%clk 0:02:23]} 16. Ne2 {[%clk 0:02:45]}  a5 {[%clk 0:02:22]} 17. Ned4 {[%clk 0:02:44]}  b4 {[%clk 0:02:21]} 18. Nxc6 {[%clk 0:02:39]}  Bxc6 {[%clk 0:02:22]} 19. Nd4 {[%clk 0:02:39]}  Rfc8 {[%clk 0:02:22]} 20. axb4 {[%clk 0:02:35]}  Rxb4 {[%clk 0:02:12]} 21. c3 {[%clk 0:02:33]}  Nb3 {[%clk 0:01:55]} 22. Nxb3 {[%clk 0:02:27]}  Rxb3 {[%clk 0:01:54]} 23. Ra1 {[%clk 0:01:44]}  a4 {[%clk 0:01:48]} 24. Ra2 {[%clk 0:01:24]}  Rcb8 {[%clk 0:01:48]} 25. c4 {[%clk 0:01:20]}  Qb7 {[%clk 0:01:36]} 26. f5 {[%clk 0:01:04]}  Rxb2 {[%clk 0:01:19]} 27. Rxb2 {[%clk 0:01:02]}  Qxb2 {[%clk 0:01:19]} 28. Qh6 {[%clk 0:00:42]}  dxc4 {[%clk 0:01:10]} 29. Rg1 {[%clk 0:00:25]}  Qxe5 {[%clk 0:00:51]} 30. fxg6 {[%clk 0:00:25]}  hxg6 {[%clk 0:00:40]} 31. Bxc4 {[%clk 0:00:25]}  Rb2 {[%clk 0:00:26]} 32. Bf1 {[%clk 0:00:18]}  a3 {[%clk 0:00:25]} 33. Qc1 {[%clk 0:00:18]}  a2 {[%clk 0:00:25]} 34. Qa1 {[%clk 0:00:16]}  Qc3 {[%clk 0:00:18]} 35. h3 {[%clk 0:00:13]}  Qd2 {[%clk 0:00:18]} 36. Kh2 {[%clk 0:00:10]}  Rb1 {[%clk 0:00:18]} 37. Qe5 {[%clk 0:00:07]}  Rxf1 {[%clk 0:00:18]} 38. Qb8+ {[%clk 0:00:05]}  Kh7 {[%clk 0:00:17]} 39. Qf8 {[%clk 0:00:03]}  Rf6 {[%clk 0:00:14]} 40. Qe7 {[%clk 0:00:00]}  Kg7 {[%clk 0:00:13]} 41. Qxf6+ {[%clk 0:00:01]}  Kxf6 {[%clk 0:00:13]} 42. h4 {[%clk 0:00:02]}  Qxg2+ {[%clk 0:00:13]} 43. Rxg2 {[%clk 0:00:01]}  Bxg2 {[%clk 0:00:14]} 44. Kxg2 {[%clk 0:00:02]}  a1=Q {[%clk 0:00:15]} 45. Kg3 {[%clk 0:00:02]}  Kf5 {[%clk 0:00:15]} 46. Kh3 {[%clk 0:00:02]}  Qc3+ {[%clk 0:00:15]} 47. Kh2 {[%clk 0:00:01]}  Kg4 {[%clk 0:00:16]} 48. h5 {[%clk 0:00:01]}  Qd2+ {[%clk 0:00:15]} 49. Kh1 {[%clk 0:00:02]}  Kg3 {[%clk 0:00:14]} 50. hxg6 {[%clk 0:00:03]}  Qe1# {[%clk 0:00:15]} 0-1


[Site "https://www.chess.com"]

[Event "Titled Tuesday Blitz June 20 Early 2023"]
[White "Butti, Enrique"]
[Black "sebastianmarinp"]
[WhiteFideId "3700470"]
[WhiteElo "2080"]
[BlackElo "2379"]
[Result "1/2-1/2"]
[Round "3"]
[TimeControl "180+2"]
[Date "2023.06.20"]
[WhiteClock "0:00:16"]
[BlackClock "0:00:06"]
[Board "221"]

1. d4 {[%clk 0:03:00]}  Nf6 {[%clk 0:02:59]} 2. c4 {[%clk 0:02:59]}  e6 {[%clk 0:02:59]} 3. Nc3 {[%clk 0:02:58]}  Bb4 {[%clk 0:02:59]} 4. Bg5 {[%clk 0:02:56]}  h6 {[%clk 0:02:59]} 5. Bh4 {[%clk 0:02:56]}  b6 {[%clk 0:02:59]} 6. f3 {[%clk 0:02:50]}  g5 {[%clk 0:02:55]} 7. Bf2 {[%clk 0:02:45]}  Bxc3+ {[%clk 0:02:18]} 8. bxc3 {[%clk 0:02:44]}  Nc6 {[%clk 0:02:11]} 9. e4 {[%clk 0:02:42]}  Ba6 {[%clk 0:02:10]} 10. h4 {[%clk 0:02:38]}  g4 {[%clk 0:02:07]} 11. h5 {[%clk 0:02:37]}  Qe7 {[%clk 0:02:02]} 12. Bh4 {[%clk 0:02:36]}  e5 {[%clk 0:01:56]} 13. Ne2 {[%clk 0:01:56]}  Bxc4 {[%clk 0:01:45]} 14. Ng3 {[%clk 0:01:55]}  Bxf1 {[%clk 0:01:38]} 15. Rxf1 {[%clk 0:01:49]}  O-O-O {[%clk 0:00:51]} 16. Nf5 {[%clk 0:01:44]}  Qa3 {[%clk 0:00:45]} 17. Bxf6 {[%clk 0:01:43]}  Qxc3+ {[%clk 0:00:44]} 18. Kf2 {[%clk 0:01:41]}  gxf3 {[%clk 0:00:39]} 19. gxf3 {[%clk 0:01:29]}  exd4 {[%clk 0:00:31]} 20. Nxd4 {[%clk 0:01:24]}  Qc5 {[%clk 0:00:20]} 21. Rc1 {[%clk 0:01:15]}  Qxh5 {[%clk 0:00:19]} 22. Bxh8 {[%clk 0:01:10]}  Rxh8 {[%clk 0:00:18]} 23. Nxc6 {[%clk 0:01:07]}  dxc6 {[%clk 0:00:19]} 24. Rxc6 {[%clk 0:01:06]}  Qh2+ {[%clk 0:00:18]} 25. Ke3 {[%clk 0:01:03]}  Rd8 {[%clk 0:00:19]} 26. Qc2 {[%clk 0:00:53]}  Qe5 {[%clk 0:00:16]} 27. Rc1 {[%clk 0:00:47]}  Kb8 {[%clk 0:00:10]} 28. Rxc7 {[%clk 0:00:39]}  Qg5+ {[%clk 0:00:09]} 29. Ke2 {[%clk 0:00:27]}  Qg2+ {[%clk 0:00:08]} 30. Ke3 {[%clk 0:00:19]}  Qg5+ {[%clk 0:00:08]} 31. Ke2 {[%clk 0:00:17]}  Qg2+ {[%clk 0:00:07]} 32. Ke3 {[%clk 0:00:16]}  Qg5+ {[%clk 0:00:06]} 1/2-1/2


[Site "https://www.chess.com"]

[Event "Titled Tuesday Blitz June 20 Early 2023"]
[White "Osinovsky, Stepan"]
[Black "Sariego Figueredo, Wilfredo"]
[WhiteFideId "4157354"]
[BlackFideId "3500080"]
[WhiteElo "2222"]
[BlackElo "2309"]
[Result "0-1"]
[Round "3"]
[TimeControl "180+2"]
[Date "2023.06.20"]
[WhiteClock "0:00:00"]
[BlackClock "0:01:19"]
[Board "222"]

1. Nf3 {[%clk 0:02:59]}  c5 {[%clk 0:02:59]} 2. g3 {[%clk 0:03:00]}  d5 {[%clk 0:02:59]} 3. Bg2 {[%clk 0:03:00]}  Nc6 {[%clk 0:02:58]} 4. O-O {[%clk 0:03:01]}  e5 {[%clk 0:02:59]} 5. d3 {[%clk 0:03:01]}  Nf6 {[%clk 0:02:59]} 6. Nbd2 {[%clk 0:03:01]}  Be7 {[%clk 0:02:58]} 7. e4 {[%clk 0:03:02]}  dxe4 {[%clk 0:02:56]} 8. dxe4 {[%clk 0:03:01]}  Bg4 {[%clk 0:02:54]} 9. c3 {[%clk 0:02:59]}  Qc7 {[%clk 0:02:49]} 10. a4 {[%clk 0:02:44]}  Rd8 {[%clk 0:02:46]} 11. a5 {[%clk 0:02:28]}  Nxe4 {[%clk 0:02:40]} 12. a6 {[%clk 0:01:44]}  b6 {[%clk 0:02:31]} 13. Qa4 {[%clk 0:01:15]}  Nxd2 {[%clk 0:02:30]} 14. Nxe5 {[%clk 0:00:35]}  O-O {[%clk 0:02:05]} 15. Nxc6 {[%clk 0:00:35]}  Nxf1 {[%clk 0:02:04]} 16. Bf4 {[%clk 0:00:25]}  Qd7 {[%clk 0:01:55]} 17. Bxf1 {[%clk 0:00:15]}  Rc8 {[%clk 0:01:51]} 18. Bb5 {[%clk 0:00:13]}  Qe6 {[%clk 0:01:45]} 19. Ne5 {[%clk 0:00:10]}  Rcd8 {[%clk 0:01:41]} 20. Nc6 {[%clk 0:00:10]}  Bd6 {[%clk 0:01:39]} 21. Nxd8 {[%clk 0:00:09]}  Rxd8 {[%clk 0:01:40]} 22. Bxd6 {[%clk 0:00:07]}  Qxd6 {[%clk 0:01:40]} 23. Qxg4 {[%clk 0:00:06]}  h6 {[%clk 0:01:37]} 24. Bc4 {[%clk 0:00:05]}  Qf6 {[%clk 0:01:36]} 25. Re1 {[%clk 0:00:04]}  Rd2 {[%clk 0:01:35]} 26. Re2 {[%clk 0:00:04]}  Rd1+ {[%clk 0:01:33]} 27. Kg2 {[%clk 0:00:04]}  Rd8 {[%clk 0:01:32]} 28. Qe4 {[%clk 0:00:03]}  Qd6 {[%clk 0:01:27]} 29. h4 {[%clk 0:00:03]}  Qf6 {[%clk 0:01:26]} 30. h5 {[%clk 0:00:03]}  Qg5 {[%clk 0:01:25]} 31. Bd3 {[%clk 0:00:00]}  f5 {[%clk 0:01:19]} 0-1


[Site "https://www.chess.com"]

[Event "Titled Tuesday Blitz June 20 Early 2023"]
[White "Dwilewicz, Katarzyna"]
[Black "Hartikainen, Jarmo"]
[WhiteFideId "1148486"]
[BlackFideId "503134"]
[WhiteElo "2098"]
[BlackElo "2139"]
[Result "1-0"]
[Round "3"]
[TimeControl "180+2"]
[Date "2023.06.20"]
[WhiteClock "0:02:08"]
[BlackClock "0:01:00"]
[Board "226"]

1. e4 {[%clk 0:03:00]}  c5 {[%clk 0:02:59]} 2. Nf3 {[%clk 0:03:00]}  Nc6 {[%clk 0:02:59]} 3. Bb5 {[%clk 0:02:58]}  e6 {[%clk 0:03:00]} 4. O-O {[%clk 0:02:58]}  Nge7 {[%clk 0:02:59]} 5. Re1 {[%clk 0:02:57]}  a6 {[%clk 0:03:00]} 6. Bf1 {[%clk 0:02:57]}  b5 {[%clk 0:02:59]} 7. a4 {[%clk 0:02:56]}  b4 {[%clk 0:02:52]} 8. c3 {[%clk 0:02:56]}  a5 {[%clk 0:02:49]} 9. d4 {[%clk 0:02:56]}  cxd4 {[%clk 0:02:45]} 10. cxd4 {[%clk 0:02:56]}  d5 {[%clk 0:02:39]} 11. e5 {[%clk 0:02:49]}  Ng6 {[%clk 0:02:37]} 12. Bg5 {[%clk 0:02:48]}  Be7 {[%clk 0:02:37]} 13. Bxe7 {[%clk 0:02:47]}  Qxe7 {[%clk 0:02:37]} 14. Nbd2 {[%clk 0:02:47]}  O-O {[%clk 0:02:35]} 15. Nb3 {[%clk 0:02:47]}  f6 {[%clk 0:02:21]} 16. Rc1 {[%clk 0:02:44]}  Bd7 {[%clk 0:02:14]} 17. exf6 {[%clk 0:02:39]}  Qxf6 {[%clk 0:02:14]} 18. Bb5 {[%clk 0:02:32]}  Rac8 {[%clk 0:01:46]} 19. Nc5 {[%clk 0:02:31]}  Qe7 {[%clk 0:01:25]} 20. Nxd7 {[%clk 0:02:09]}  Qxd7 {[%clk 0:01:24]} 21. Ng5 {[%clk 0:02:09]}  e5 {[%clk 0:01:08]} 22. Qh5 {[%clk 0:02:09]}  Qf5 {[%clk 0:01:00]} 23. Qxh7# {[%clk 0:02:08]} 1-0


[Site "https://www.chess.com"]

[Event "Titled Tuesday Blitz June 20 Early 2023"]
[White "Marin Masis, Jose Esteban"]
[Black "Shapiro, Daniel"]
[WhiteFideId "6508146"]
[BlackFideId "2001780"]
[WhiteElo "1838"]
[BlackElo "2330"]
[Result "0-1"]
[Round "3"]
[TimeControl "180+2"]
[Date "2023.06.20"]
[WhiteClock "0:00:16"]
[BlackClock "0:00:16"]
[Board "230"]

1. e4 {[%clk 0:02:57]}  e5 {[%clk 0:02:59]} 2. Nf3 {[%clk 0:02:56]}  Nc6 {[%clk 0:02:59]} 3. Bb5 {[%clk 0:02:55]}  a6 {[%clk 0:02:59]} 4. Ba4 {[%clk 0:02:55]}  Nf6 {[%clk 0:02:59]} 5. d3 {[%clk 0:02:52]}  b5 {[%clk 0:02:55]} 6. Bb3 {[%clk 0:02:51]}  Bd6 {[%clk 0:02:55]} 7. O-O {[%clk 0:02:51]}  h6 {[%clk 0:02:54]} 8. a4 {[%clk 0:02:51]}  Bb7 {[%clk 0:02:49]} 9. Nbd2 {[%clk 0:02:50]}  O-O {[%clk 0:02:47]} 10. Re1 {[%clk 0:02:44]}  Re8 {[%clk 0:02:48]} 11. Nh4 {[%clk 0:02:40]}  Bf8 {[%clk 0:02:47]} 12. Nf5 {[%clk 0:02:39]}  d5 {[%clk 0:02:43]} 13. exd5 {[%clk 0:02:32]}  Na5 {[%clk 0:02:29]} 14. axb5 {[%clk 0:02:15]}  Nxb3 {[%clk 0:02:25]} 15. Nxb3 {[%clk 0:02:13]}  Qxd5 {[%clk 0:02:08]} 16. Ne3 {[%clk 0:02:11]}  Qxb5 {[%clk 0:02:06]} 17. Ra5 {[%clk 0:02:06]}  Qc6 {[%clk 0:01:58]} 18. Ra1 {[%clk 0:01:56]}  Bc8 {[%clk 0:01:16]} 19. h3 {[%clk 0:01:32]}  Be6 {[%clk 0:01:15]} 20. Na5 {[%clk 0:01:27]}  Qb5 {[%clk 0:00:57]} 21. Nac4 {[%clk 0:01:08]}  e4 {[%clk 0:00:53]} 22. Ra5 {[%clk 0:01:04]}  Qb7 {[%clk 0:00:52]} 23. Ra1 {[%clk 0:00:32]}  Rad8 {[%clk 0:00:50]} 24. d4 {[%clk 0:00:31]}  c5 {[%clk 0:00:45]} 25. c3 {[%clk 0:00:28]}  cxd4 {[%clk 0:00:42]} 26. cxd4 {[%clk 0:00:28]}  Bc5 {[%clk 0:00:39]} 27. Na5 {[%clk 0:00:23]}  Qc7 {[%clk 0:00:35]} 28. d5 {[%clk 0:00:20]}  Nxd5 {[%clk 0:00:27]} 29. Nxd5 {[%clk 0:00:20]}  Bxd5 {[%clk 0:00:26]} 30. Qh5 {[%clk 0:00:20]}  Bb4 {[%clk 0:00:21]} 31. Bxh6 {[%clk 0:00:19]}  Bxe1 {[%clk 0:00:16]} 32. Qh4 {[%clk 0:00:16]} 0-1


[Site "https://www.chess.com"]

[Event "Titled Tuesday Blitz June 20 Early 2023"]
[White "Vifleemskaia, Svetlana"]
[Black "Saim, Mohamed Ilias"]
[WhiteFideId "4129490"]
[BlackFideId "7900465"]
[WhiteElo "1930"]
[BlackElo "2063"]
[Result "1-0"]
[Round "3"]
[TimeControl "180+2"]
[Date "2023.06.20"]
[WhiteClock "0:01:31"]
[BlackClock "0:00:01"]
[Board "236"]

1. d4 {[%clk 0:03:00]}  Nf6 {[%clk 0:02:58]} 2. c4 {[%clk 0:03:00]}  c5 {[%clk 0:02:58]} 3. d5 {[%clk 0:03:00]}  e6 {[%clk 0:02:58]} 4. Nc3 {[%clk 0:03:00]}  exd5 {[%clk 0:02:59]} 5. cxd5 {[%clk 0:03:00]}  d6 {[%clk 0:03:00]} 6. e4 {[%clk 0:03:00]}  g6 {[%clk 0:03:00]} 7. Nge2 {[%clk 0:03:00]}  Bg7 {[%clk 0:03:01]} 8. Ng3 {[%clk 0:03:01]}  O-O {[%clk 0:02:54]} 9. Be2 {[%clk 0:03:00]}  Re8 {[%clk 0:02:44]} 10. O-O {[%clk 0:02:59]}  Nbd7 {[%clk 0:02:41]} 11. Bf4 {[%clk 0:02:58]}  Ne5 {[%clk 0:02:38]} 12. Qd2 {[%clk 0:02:58]}  a6 {[%clk 0:02:34]} 13. a4 {[%clk 0:02:57]}  b6 {[%clk 0:02:32]} 14. Bh6 {[%clk 0:02:54]}  Bh8 {[%clk 0:02:32]} 15. Bg5 {[%clk 0:02:53]}  Qc7 {[%clk 0:02:29]} 16. Rac1 {[%clk 0:02:51]}  Bb7 {[%clk 0:02:20]} 17. b4 {[%clk 0:02:47]}  Rab8 {[%clk 0:02:16]} 18. b5 {[%clk 0:02:47]}  axb5 {[%clk 0:02:15]} 19. Nxb5 {[%clk 0:02:46]}  Qd8 {[%clk 0:02:09]} 20. f4 {[%clk 0:02:33]}  Ned7 {[%clk 0:01:27]} 21. Nxd6 {[%clk 0:02:32]}  Qe7 {[%clk 0:01:15]} 22. Nxe8 {[%clk 0:02:20]}  Qxe8 {[%clk 0:01:13]} 23. Bf3 {[%clk 0:02:13]}  Ra8 {[%clk 0:01:10]} 24. e5 {[%clk 0:02:10]}  Nh5 {[%clk 0:00:56]} 25. Nxh5 {[%clk 0:02:10]}  gxh5 {[%clk 0:00:57]} 26. Bxh5 {[%clk 0:02:10]}  Rxa4 {[%clk 0:00:56]} 27. e6 {[%clk 0:02:06]}  Qa8 {[%clk 0:00:20]} 28. exd7 {[%clk 0:01:48]}  f6 {[%clk 0:00:18]} 29. Bh6 {[%clk 0:01:43]}  Bxd5 {[%clk 0:00:10]} 30. Rfe1 {[%clk 0:01:33]}  Ra2 {[%clk 0:00:01]} 31. Re8+ {[%clk 0:01:31]} 1-0


[Site "https://www.chess.com"]

[Event "Titled Tuesday Blitz June 20 Early 2023"]
[White "Goughfather"]
[Black "Jiganchine, Roman"]
[BlackFideId "2603667"]
[WhiteElo "2006"]
[BlackElo "2311"]
[Result "0-1"]
[Round "3"]
[TimeControl "180+2"]
[Date "2023.06.20"]
[WhiteClock "0:00:00"]
[BlackClock "0:00:19"]
[Board "237"]

1. d4 {[%clk 0:03:00]}  d5 {[%clk 0:02:57]} 2. Nc3 {[%clk 0:03:00]}  Nf6 {[%clk 0:02:50]} 3. Bf4 {[%clk 0:03:00]}  e6 {[%clk 0:02:43]} 4. Nb5 {[%clk 0:02:58]}  Na6 {[%clk 0:02:43]} 5. e3 {[%clk 0:02:57]}  Be7 {[%clk 0:02:43]} 6. Nf3 {[%clk 0:02:53]}  O-O {[%clk 0:02:42]} 7. Ne5 {[%clk 0:02:45]}  h6 {[%clk 0:02:33]} 8. g4 {[%clk 0:02:40]}  c6 {[%clk 0:02:30]} 9. Nc3 {[%clk 0:02:38]}  c5 {[%clk 0:02:30]} 10. Bxa6 {[%clk 0:02:27]}  bxa6 {[%clk 0:02:31]} 11. Nc6 {[%clk 0:02:27]}  Qd7 {[%clk 0:02:30]} 12. Nxe7+ {[%clk 0:02:26]}  Qxe7 {[%clk 0:02:30]} 13. g5 {[%clk 0:02:21]}  Nh7 {[%clk 0:02:09]} 14. gxh6 {[%clk 0:02:09]}  g5 {[%clk 0:02:07]} 15. Qg4 {[%clk 0:01:57]}  Kh8 {[%clk 0:02:04]} 16. Qg3 {[%clk 0:01:52]}  Rg8 {[%clk 0:02:02]} 17. Bd6 {[%clk 0:01:49]}  Qb7 {[%clk 0:01:59]} 18. O-O-O {[%clk 0:01:29]}  Bd7 {[%clk 0:01:46]} 19. Qf3 {[%clk 0:01:19]}  f6 {[%clk 0:01:42]} 20. Be7 {[%clk 0:01:09]}  Rg6 {[%clk 0:01:41]} 21. h4 {[%clk 0:01:03]}  g4 {[%clk 0:01:40]} 22. Qf4 {[%clk 0:00:57]}  Be8 {[%clk 0:01:27]} 23. Bxc5 {[%clk 0:00:52]}  Rb8 {[%clk 0:01:23]} 24. b3 {[%clk 0:00:37]}  Rc8 {[%clk 0:01:19]} 25. h5 {[%clk 0:00:33]}  Rg5 {[%clk 0:01:18]} 26. f3 {[%clk 0:00:21]}  e5 {[%clk 0:01:16]} 27. Qh2 {[%clk 0:00:14]}  gxf3 {[%clk 0:01:14]} 28. Rhg1 {[%clk 0:00:14]}  Qc7 {[%clk 0:01:00]} 29. Rxg5 {[%clk 0:00:12]}  Nxg5 {[%clk 0:00:57]} 30. Qg3 {[%clk 0:00:12]}  Bxh5 {[%clk 0:00:53]} 31. Nxd5 {[%clk 0:00:12]}  Qf7 {[%clk 0:00:49]} 32. Nc3 {[%clk 0:00:10]}  f2 {[%clk 0:00:45]} 33. Rf1 {[%clk 0:00:10]}  e4 {[%clk 0:00:35]} 34. Qxf2 {[%clk 0:00:10]}  Bf3 {[%clk 0:00:33]} 35. Nd1 {[%clk 0:00:09]}  a5 {[%clk 0:00:32]} 36. Nb2 {[%clk 0:00:09]}  a4 {[%clk 0:00:32]} 37. Nc4 {[%clk 0:00:09]}  axb3 {[%clk 0:00:31]} 38. axb3 {[%clk 0:00:09]}  a5 {[%clk 0:00:30]} 39. Nd6 {[%clk 0:00:09]}  Qe6 {[%clk 0:00:30]} 40. Nxc8 {[%clk 0:00:09]}  Qxc8 {[%clk 0:00:31]} 41. Qd2 {[%clk 0:00:09]}  Qa6 {[%clk 0:00:30]} 42. Rg1 {[%clk 0:00:07]}  Kh7 {[%clk 0:00:27]} 43. Qc3 {[%clk 0:00:07]}  a4 {[%clk 0:00:26]} 44. bxa4 {[%clk 0:00:06]}  Qxa4 {[%clk 0:00:26]} 45. Qb3 {[%clk 0:00:06]}  Qa6 {[%clk 0:00:20]} 46. Qb6 {[%clk 0:00:04]}  Qa1+ {[%clk 0:00:20]} 47. Qb1 {[%clk 0:00:03]}  Qa6 {[%clk 0:00:19]} 48. Qb3 {[%clk 0:00:00]}  Qa1+ {[%clk 0:00:19]} 0-1


[Site "https://www.chess.com"]